lending/lending_fUSD_20260119
["ID","MTS","AMOUNT","RATE_DAILY","PERIOD"]
[402713817,1768825840938,-150.0,0.0001778,2]
[402713818,1768825840947,-500.0,0.0001778,2]
[402713819,1768825840956,-500.0,0.0001778,2]
[402713820,1768825840965,-500.0,0.0001778,2]
[402713821,1768825840975,-150.0,0.00017781,2]
[402713822,1768825840984,-1000.0,0.00017785,2]
[402713823,1768825840996,-500.0,0.00017787,2]
[402713824,1768825841005,-206.0,0.00017789,2]
[402713825,1768825841015,-580.0234,0.000178,2]
[402713826,1768825841025,-19988.3136,0.000178,2]
[402713827,1768825841035,-500.0,0.00017808,2]
[402713828,1768825841044,-551.0,0.00017808,2]
[402713829,1768825841053,-1000.0,0.00017808,2]
[402713830,1768825841062,-151.0,0.00017808,2]
[402713831,1768825841071,-151.0,0.00017808,2]
[402713832,1768825841080,-151.0,0.00017808,2]
[402713833,1768825841089,-151.0,0.00017808,2]
[402713834,1768825841100,-151.0,0.00017808,2]
[402713835,1768825841109,-151.0,0.00017808,2]
[402713836,1768825841119,-151.0,0.00017808,2]
[402713837,1768825841137,-151.0,0.00017808,2]
[402713838,1768825841146,-151.0,0.00017808,2]
[402713839,1768825841159,-151.0,0.00017808,2]
[402713840,1768825841168,-196.17114968,0.00017808,2]
[402713841,1768825841178,-187.0985394,0.00017818,2]
[402713842,1768825841187,-1256.07579,0.0001782,2]
[402713843,1768825841199,-1256.0758,0.0001782,2]
[402713844,1768825841208,-1387.1,0.00017821,2]
[402713845,1768825841217,-2000.0,0.00017833,2]
[402713846,1768825841226,-2000.0,0.00017833,2]
[402713847,1768825841236,-2000.0,0.00017833,2]
[402713848,1768825841245,-2000.0,0.00017833,2]
[402713849,1768825841254,-2000.0,0.00017833,2]
[402713850,1768825841263,-2000.0,0.00017833,2]
[402713851,1768825841273,-2000.0,0.00017833,2]
[402713852,1768825841283,-2000.0,0.00017833,2]
[402713853,1768825841294,-2000.0,0.00017833,2]
[402713854,1768825841304,-2000.0,0.00017833,2]
[402713855,1768825841314,-1593.735,0.00017833,2]
[402713856,1768825841323,-150.0,0.00017835,2]
[402713857,1768825841332,-200.0,0.00017835,2]
[402713858,1768825841341,-500.0,0.00017835,2]
[402713859,1768825841349,-200.0,0.00017835,2]
[402713860,1768825841359,-500.0,0.00017835,2]
[402713861,1768825841367,-500.0,0.00017835,2]
[402713862,1768825841377,-500.0,0.00017835,2]
[402713863,1768825841386,-891.09862917,0.00017851,2]
[402713864,1768825841410,-150.0,0.00017851,2]
[402713865,1768825841420,-500.0,0.00017863,2]
[402713866,1768825841429,-1387.1,0.00017866,2]
[402713867,1768825841439,-3230.0,0.00017867,2]
[402713868,1768825841448,-761.74,0.00017879,2]
[402713869,1768825841457,-1000.0,0.00017883,2]
[402713870,1768825841467,-1000.0,0.00017885,2]
[402713871,1768825841476,-1000.0,0.00017885,2]
[402713872,1768825841485,-1000.0,0.00017885,2]
[402713873,1768825841495,-1000.0,0.00017885,2]
[402713874,1768825841504,-500.0,0.00017889,2]
[402713875,1768825841514,-558.26785417,0.00017889,2]
[402713876,1768825841523,-500.0,0.00017889,2]
[402713877,1768825841532,-1000.0,0.0001789,2]
[402713878,1768825841542,-1000.0,0.0001789,2]
[402713879,1768825841551,-1000.0,0.0001789,2]
[402713880,1768825841559,-773.017,0.0001789,2]
[402713881,1768825841569,-17750.04124544,0.000179,3]
[402713882,1768825841579,-4168.5871,0.000179,2]
[402713883,1768825841589,-560.66022555,0.000179,2]
[402713884,1768825841601,-500.0,0.000179,2]
[402713885,1768825841611,-994.55401089,0.000179,2]
[402713886,1768825841620,-994.55401089,0.000179,2]
[402713887,1768825841630,-994.55401089,0.000179,2]
[402713888,1768825841640,-994.55401089,0.000179,2]
[402713889,1768825841650,-994.55401089,0.000179,2]
[402713890,1768825841659,-994.55401089,0.000179,2]
[402713891,1768825841669,-994.55401089,0.000179,2]
[402713892,1768825841680,-994.55401089,0.000179,2]
[402713893,1768825841691,-994.55401089,0.000179,2]
[402713894,1768825841701,-994.55401089,0.000179,2]
[402713895,1768825841713,-994.55401089,0.000179,2]
[402713896,1768825841723,-994.55401089,0.000179,2]
[402713897,1768825841734,-187.0985394,0.000179,2]
[402713898,1768825841744,-181.45497334,0.000179,2]
[402713899,1768825841754,-3872.31026866,0.000179,2]
[402713900,1768825841763,-189.32396817,0.000179,2]
[402713901,1768825841773,-25925.05248005,0.000179,2]
[402713902,1768825841783,-3102.0,0.000179,2]
[402713903,1768825841793,-1000.0,0.00017903,2]
[402713904,1768825841802,-1387.1,0.0001791,2]
[402713905,1768825841813,-750.0,0.00017912,2]
[402713906,1768825841822,-500.0,0.00017918,2]
[402713907,1768825841832,-500.0,0.00017922,2]
[402713908,1768825841841,-500.0,0.00017922,2]
[402713909,1768825841851,-500.0,0.00017922,2]
[402713910,1768825841861,-750.0,0.00017923,2]
[402713911,1768825841871,-1000.0,0.00017936,2]
[402713912,1768825841881,-500.0,0.00017944,2]
[402713913,1768825841892,-511.80432216,0.00017944,2]
[402713914,1768825841903,-500.0,0.00017944,2]
[402713915,1768825841913,-500.0,0.00017944,2]
[402713916,1768825841923,-1387.1,0.00017955,2]
[402713917,1768825841932,-500.0,0.00017972,2]
[402713918,1768825841942,-500.0,0.00017973,2]
[402713919,1768825841953,-500.0,0.00017973,2]
[402713920,1768825841963,-229.35,0.00017988,2]
[402713921,1768825841975,-366.97233379,0.0001799,2]
[402713922,1768825841986,-366.97233379,0.0001799,2]
[402713923,1768825841997,-750.0,0.00017993,2]
[402713924,1768825842007,-151.0,0.00017996,2]
[402713925,1768825842021,-151.0,0.00017997,2]
[402713926,1768825842031,-500.0,0.00017998,2]
[402713927,1768825842041,-500.0,0.00017998,2]
[402713928,1768825842051,-500.0,0.00017999,2]
[402713929,1768825842061,-500.0,0.00017999,2]
[402713930,1768825842070,-159162.3231416,0.00017999,2]
[402713931,1768825842080,-7620.7648611,0.00017999,2]
[402713932,1768825842090,-500.0,0.00017999,2]
[402713933,1768825842099,-500.0,0.00017999,2]
[402713934,1768825842109,-500.0,0.00017999,2]
[402713935,1768825842118,-500.0,0.00017999,2]
[402713936,1768825842127,-500.0,0.00017999,2]
[402713937,1768825842136,-500.0,0.00017999,2]
[402713938,1768825842146,-500.0,0.00017999,2]
[402713939,1768825842157,-500.0,0.00017999,2]
[402713940,1768825842166,-500.0,0.00017999,2]
[402713941,1768825842177,-500.0,0.00017999,2]
[402713942,1768825842186,-500.0,0.00017999,2]
[402713943,1768825842198,-500.0,0.00017999,2]
[402713944,1768825842207,-500.0,0.00017999,2]
[402713945,1768825842218,-500.0,0.00017999,2]
[402713946,1768825842228,-163.26702471,0.00017999,2]
[402713947,1768825842237,-300.0,0.00017999,2]
[402713948,1768825842246,-500.0,0.00017999,2]
[402713949,1768825842255,-666.0,0.00017999,2]
[402713950,1768825842267,-11791.74278883,0.00017999,2]
[402713951,1768825842277,-13671.12709858,0.00017999,2]
[402713952,1768825842286,-500.0,0.00018,2]
[402713953,1768825842296,-150.0,0.00018,2]
[402713954,1768825842305,-1304.02635732,0.00018,2]
[402713955,1768825842315,-1981585.98037028,0.00018,2]
[402713956,1768825842329,-505.60542929,0.00018,2]
[402713966,1768825843312,-167.71513669,0.00017733,2]
[402713967,1768825843322,-987491.97421844,0.00018,2]
[402713968,1768825843331,-184700.51656023,0.00018,2]
[402713983,1768825846184,-743.0598,0.00016268,2]
[402713984,1768825846196,-151.0,0.00016877,2]
[402713985,1768825846206,-2440.0,0.0001773,2]
[402713986,1768825846218,-2194.05583955,0.00018,2]
[402713987,1768825846242,-691.19950335,0.00018,2]
[402713988,1768825846352,-11177.99915104,0.00018,2]
[402713991,1768825949778,500.0,0.00015422,2]
[402713994,1768826168416,10000.01,7.945e-05,2]
[402713995,1768826168439,906.41183,7.945e-05,2]
[402714044,1768827040495,-372.34049029,0.0001548,2]
[402714045,1768827040552,-986.2616499,0.0001548,2]
[402714046,1768827040567,-772.82785981,0.0001548,2]
[402714047,1768827040577,-165.394,0.0001548,2]
[402714048,1768827040587,-166.66,0.00015489,2]
[402714049,1768827040597,-1308.20086359,0.0001566,2]
[402714050,1768827040607,-1200.0,0.00015695,2]
[402714051,1768827040618,-300.0,0.00015696,2]
[402714052,1768827040629,-666.18905604,0.00015697,2]
[402714053,1768827040639,-774.46205375,0.00015697,2]
[402714054,1768827040649,-151.0,0.00015793,2]
[402714055,1768827040659,-500.0,0.00015795,2]
[402714056,1768827040671,-500.0,0.00015797,2]
[402714057,1768827040683,-500.0,0.00015797,2]
[402714058,1768827040692,-511.80432216,0.00015797,2]
[402714059,1768827040702,-166.66,0.00015815,2]
[402714060,1768827040711,-1264.0,0.00015837,2]
[402714061,1768827040720,-1264.0,0.00015837,2]
[402714062,1768827040730,-666.18905604,0.00015942,2]
[402714063,1768827040739,-774.46205373,0.00015942,2]
[402714064,1768827040749,-166.66,0.00016142,2]
[402714065,1768827040758,-3421.21,0.00016164,2]
[402714066,1768827040767,-666.18905604,0.00016187,2]
[402714068,1768827040778,-774.46205373,0.00016187,2]
[402714070,1768827040787,-150.0,0.000162,2]
[402714072,1768827040796,-500.0,0.00016215,2]
[402714074,1768827040806,-356.24113157,0.00016215,2]
[402714076,1768827040815,-958.2,0.00016216,2]
[402714078,1768827040824,-455.0,0.00016251,2]
[402714080,1768827040833,-1867.07,0.00016322,2]
[402714082,1768827040842,-500.0,0.00016367,2]
[402714084,1768827040852,-500.0,0.00016367,2]
[402714086,1768827040861,-500.0,0.00016367,2]
[402714087,1768827040870,-500.0,0.00016367,2]
[402714089,1768827040879,-500.0,0.00016367,2]
[402714091,1768827040889,-500.0,0.00016367,2]
[402714093,1768827040899,-500.0,0.00016367,2]
[402714095,1768827040909,-500.0,0.00016367,2]
[402714097,1768827040918,-500.0,0.00016367,2]
[402714100,1768827040933,-500.0,0.00016367,2]
[402714102,1768827040942,-500.0,0.00016367,2]
[402714104,1768827040952,-225.5,0.00016367,2]
[402714105,1768827040961,-206.4,0.00016402,2]
[402714107,1768827040971,-151.0,0.0001643,2]
[402714109,1768827040981,-151.0,0.0001643,2]
[402714112,1768827040991,-666.18905604,0.00016431,2]
[402714114,1768827041001,-774.46205373,0.00016431,2]
[402714115,1768827041011,-151.0,0.00016433,2]
[402714117,1768827041020,-151.0,0.00016433,2]
[402714119,1768827041030,-151.0,0.00016434,2]
[402714121,1768827041040,-151.0,0.00016434,2]
[402714123,1768827041050,-628.207059,0.00016438,2]
[402714125,1768827041059,-300.0,0.00016438,2]
[402714127,1768827041068,-1000.0,0.00016438,2]
[402714129,1768827041079,-1000.0,0.00016438,2]
[402714131,1768827041088,-1000.0,0.00016438,2]
[402714133,1768827041098,-151.0,0.00016438,2]
[402714135,1768827041108,-151.0,0.00016438,2]
[402714137,1768827041117,-500.0,0.00016438,2]
[402714139,1768827041131,-500.0,0.00016438,2]
[402714141,1768827041139,-500.0,0.00016438,2]
[402714143,1768827041149,-500.0,0.00016438,2]
[402714145,1768827041159,-500.0,0.00016438,2]
[402714147,1768827041168,-500.0,0.00016438,2]
[402714149,1768827041178,-242.05784765,0.00016438,2]
[402714151,1768827041187,-500.0,0.00016438,2]
[402714153,1768827041196,-500.0,0.00016438,2]
[402714155,1768827041206,-500.0,0.00016438,2]
[402714157,1768827041215,-166.66,0.00016468,2]
[402714158,1768827041225,-1500.0,0.00016521,2]
[402714159,1768827041234,-200.0,0.00016536,2]
[402714160,1768827041244,-225.5,0.00016641,2]
[402714161,1768827041254,-231.28,0.00016644,2]
[402714162,1768827041264,-182.11,0.00016648,2]
[402714163,1768827041274,-1497.78,0.00016665,2]
[402714164,1768827041283,-666.18905604,0.00016676,2]
[402714165,1768827041292,-774.46205373,0.00016676,2]
[402714166,1768827041302,-1497.78,0.00016709,2]
[402714167,1768827041311,-1497.78,0.00016753,2]
[402714169,1768827041322,-166.66,0.00016794,2]
[402714170,1768827041335,-1497.78,0.00016797,2]
[402714172,1768827041344,-150.0,0.00016824,2]
[402714174,1768827041354,-1497.78,0.0001684,2]
[402714176,1768827041364,-166.66,0.00016844,2]
[402714178,1768827041373,-1497.78,0.00016884,2]
[402714180,1768827041383,-950.29,0.00016894,2]
[402714182,1768827041393,-4475.1074,0.00016904,2]
[402714184,1768827041402,-225.52,0.00016915,2]
[402714185,1768827041412,-1000.0,0.00016917,2]
[402714186,1768827041423,-666.18905604,0.00016921,2]
[402714187,1768827041433,-774.46205373,0.00016921,2]
[402714188,1768827041443,-1497.78,0.00016928,2]
[402714189,1768827041452,-1497.78,0.00016972,2]
[402714190,1768827041462,-250.0,0.00017,2]
[402714191,1768827041472,-200.0,0.00017003,2]
[402714192,1768827041482,-16364.81209026,0.00017006,2]
[402714193,1768827041491,-1497.78,0.00017016,2]
[402714194,1768827041501,-1497.78,0.0001706,2]
[402714195,1768827041511,-322.6107,0.00017099,2]
[402714196,1768827041523,-574.12855637,0.00017099,2]
[402714197,1768827041534,-4444.0,0.00017099,2]
[402714198,1768827041543,-578.20924308,0.00017099,2]
[402714199,1768827041553,-620.0,0.00017099,2]
[402714200,1768827041564,-174.61919141,0.00017099,2]
[402714201,1768827041574,-1497.78,0.00017104,2]
[402714202,1768827041584,-166.66,0.0001712,2]
[402714203,1768827041593,-1497.78,0.00017148,2]
[402714204,1768827041603,-666.18905604,0.00017166,2]
[402714205,1768827041613,-774.46205373,0.00017166,2]
[402714206,1768827041622,-420.0,0.00017166,2]
[402714207,1768827041632,-1497.78,0.00017191,2]
[402714208,1768827041642,-1497.78,0.00017235,2]
[402714209,1768827041652,-1680.0,0.00017252,2]
[402714210,1768827041662,-1000.0,0.0001726,2]
[402714211,1768827041673,-1497.78,0.00017279,2]
[402714212,1768827041685,-500.0,0.00017288,2]
[402714213,1768827041695,-1497.78,0.00017323,2]
[402714214,1768827041705,-1497.78,0.00017367,2]
[402714215,1768827041715,-666.18905604,0.0001741,2]
[402714216,1768827041725,-774.46205373,0.0001741,2]
[402714217,1768827041735,-1497.78,0.00017411,2]
[402714218,1768827041745,-1497.78,0.00017455,2]
[402714219,1768827041755,-164.61,0.0001748,7]
[402714220,1768827041764,-1497.78,0.00017498,2]
[402714221,1768827041774,-2000.0,0.000175,2]
[402714222,1768827041784,-982.74,0.00017502,2]
[402714223,1768827041794,-1000.0,0.00017534,2]
[402714224,1768827041804,-809.1,0.00017549,2]
[402714225,1768827041814,-809.1,0.0001759,2]
[402714226,1768827041824,-500.0,0.00017616,2]
[402714227,1768827041834,-809.1,0.00017631,2]
[402714228,1768827041848,-3619.86395191,0.0001764,2]
[402714229,1768827041857,-595.37131296,0.00017647,2]
[402714230,1768827041867,-181.08010149,0.00017647,2]
[402714231,1768827041877,-666.18905604,0.00017655,2]
[402714232,1768827041886,-774.46205373,0.00017655,2]
[402714233,1768827041896,-809.1,0.00017672,2]
[402714234,1768827041905,-809.1,0.00017713,2]
[402714235,1768827041926,-150.0,0.00017725,2]
[402714236,1768827041936,-150.0,0.00017725,2]
[402714237,1768827041946,-500.0,0.00017725,2]
[402714238,1768827041956,-500.0,0.00017725,2]
[402714239,1768827041966,-500.0,0.00017725,2]
[402714240,1768827041976,-500.0,0.00017725,2]
[402714241,1768827041985,-150.0,0.00017725,2]
[402714242,1768827041995,-150.0,0.00017725,2]
[402714243,1768827042005,-1109.96,0.00017728,2]
[402714244,1768827042015,-150.99,0.00017728,2]
[402714245,1768827042025,-183.24,0.00017728,2]
[402714246,1768827042035,-299.99,0.00017728,4]
[402714247,1768827042044,-598.33,0.00017728,2]
[402714248,1768827042054,-2000.0,0.00017737,2]
[402714249,1768827042064,-2000.0,0.00017737,2]
[402714250,1768827042074,-2000.0,0.00017737,2]
[402714251,1768827042083,-2000.0,0.00017737,2]
[402714252,1768827042093,-2000.0,0.00017737,2]
[402714253,1768827042103,-2000.0,0.00017737,2]
[402714254,1768827042113,-1593.735,0.00017737,2]
[402714255,1768827042122,-1000.0,0.00017741,2]
[402714256,1768827042132,-150.0,0.00017742,2]
[402714257,1768827042142,-809.1,0.00017754,2]
[402714258,1768827042152,-166.66,0.00017771,2]
[402714259,1768827042162,-150.0,0.0001778,2]
[402714260,1768827042171,-150.0,0.0001778,2]
[402714261,1768827042181,-500.0,0.0001778,2]
[402714262,1768827042191,-500.0,0.0001778,2]
[402714263,1768827042201,-500.0,0.0001778,2]
[402714264,1768827042211,-500.0,0.0001778,2]
[402714265,1768827042221,-150.0,0.0001778,2]
[402714266,1768827042230,-166.29990226,0.0001778,2]
[402714267,1768827042241,-809.1,0.00017795,2]
[402714268,1768827042250,-1000.0,0.000178,2]
[402714269,1768827042260,-1000.0,0.000178,2]
[402714270,1768827042270,-1000.0,0.000178,2]
[402714271,1768827042279,-500.0,0.00017808,2]
[402714272,1768827042289,-551.0,0.00017808,2]
[402714273,1768827042299,-1000.0,0.00017808,2]
[402714274,1768827042308,-151.0,0.00017808,2]
[402714275,1768827042318,-151.0,0.00017808,2]
[402714276,1768827042327,-151.0,0.00017808,2]
[402714277,1768827042337,-151.0,0.00017808,2]
[402714278,1768827042347,-151.0,0.00017808,2]
[402714279,1768827042357,-151.0,0.00017808,2]
[402714280,1768827042367,-151.0,0.00017808,2]
[402714281,1768827042376,-151.0,0.00017808,2]
[402714282,1768827042386,-151.0,0.00017808,2]
[402714283,1768827042395,-151.0,0.00017808,2]
[402714284,1768827042405,-196.17114968,0.00017808,2]
[402714285,1768827042414,-773.017,0.00017816,2]
[402714286,1768827042424,-200.61634,0.0001782,2]
[402714287,1768827042434,-200.61634,0.0001782,2]
[402714288,1768827042444,-1000.0,0.00017822,2]
[402714289,1768827042454,-750.0,0.00017824,2]
[402714290,1768827042469,-150.0,0.00017835,2]
[402714291,1768827042480,-200.0,0.00017835,2]
[402714292,1768827042489,-500.0,0.00017835,2]
[402714293,1768827042499,-500.0,0.00017835,2]
[402714294,1768827042509,-500.0,0.00017835,2]
[402714295,1768827042519,-500.0,0.00017835,2]
[402714296,1768827042529,-200.0,0.00017835,2]
[402714297,1768827042539,-809.1,0.00017836,2]
[402714298,1768827042549,-1000.0,0.0001784,2]
[402714299,1768827042559,-168.0,0.00017851,2]
[402714300,1768827042570,-150.0,0.00017859,2]
[402714301,1768827042580,-500.0,0.00017863,2]
[402714302,1768827042590,-809.1,0.00017877,2]
[402714303,1768827042600,-500.0,0.00017889,2]
[402714304,1768827042610,-558.26785417,0.00017889,2]
[402714305,1768827042619,-500.0,0.00017889,2]
[402714306,1768827042630,-4168.5871,0.000179,2]
[402714307,1768827042640,-300.0252,0.000179,4]
[402714308,1768827042650,-17750.04124544,0.000179,3]
[402714309,1768827042660,-994.55401089,0.000179,2]
[402714310,1768827042669,-994.55401089,0.000179,2]
[402714311,1768827042680,-994.55401089,0.000179,2]
[402714312,1768827042690,-994.55401089,0.000179,2]
[402714313,1768827042700,-994.55401089,0.000179,2]
[402714314,1768827042710,-994.55401089,0.000179,2]
[402714315,1768827042722,-994.55401089,0.000179,2]
[402714316,1768827042733,-994.55401089,0.000179,2]
[402714317,1768827042743,-994.55401089,0.000179,2]
[402714318,1768827042753,-994.55401089,0.000179,2]
[402714319,1768827042763,-994.55401089,0.000179,2]
[402714320,1768827042772,-994.55401089,0.000179,2]
[402714321,1768827042782,-994.55401089,0.000179,2]
[402714322,1768827042791,-994.55401089,0.000179,2]
[402714323,1768827042801,-994.55401089,0.000179,2]
[402714324,1768827042811,-666.18905604,0.000179,2]
[402714325,1768827042820,-774.46205373,0.000179,2]
[402714326,1768827042830,-189.32396817,0.000179,2]
[402714327,1768827042841,-25925.05248005,0.000179,2]
[402714328,1768827042851,-224.32614929,0.000179,2]
[402714329,1768827042860,-8967.09261723,0.000179,2]
[402714330,1768827042870,-3099.0,0.000179,2]
[402714331,1768827042880,-500.0,0.00017918,2]
[402714332,1768827042890,-809.1,0.00017918,2]
[402714333,1768827042900,-1000.0,0.00017921,2]
[402714334,1768827042909,-194.32990319,0.00017929,2]
[402714335,1768827042919,-356.23848352,0.00017929,2]
[402714336,1768827042929,-181.32701673,0.00017929,2]
[402714337,1768827042939,-270.13771399,0.00017929,2]
[402714338,1768827042948,-500.0,0.00017929,2]
[402714339,1768827042958,-243.35395594,0.00017929,2]
[402714340,1768827042968,-750.0,0.00017935,2]
[402714341,1768827042978,-641.09862917,0.0001794,2]
[402714342,1768827042988,-500.0,0.00017944,2]
[402714343,1768827042999,-500.0,0.00017944,2]
[402714344,1768827043010,-1000.0,0.00017958,2]
[402714345,1768827043025,-809.1,0.00017959,2]
[402714346,1768827043035,-750.0,0.00017962,2]
[402714347,1768827043045,-500.0,0.00017972,2]
[402714348,1768827043055,-500.0,0.00017973,2]
[402714349,1768827043066,-500.0,0.00017973,2]
[402714350,1768827043076,-500.0,0.00017973,2]
[402714351,1768827043086,-168.0,0.00017985,2]
[402714352,1768827043095,-750.0,0.00017986,2]
[402714353,1768827043105,-750.0,0.00017988,2]
[402714358,1768827043466,-244.64822252,0.0001799,2]
[402714359,1768827043482,-244.64822252,0.0001799,2]
[402714360,1768827043493,-244.64822252,0.0001799,2]
[402714361,1768827043504,-151.0,0.00017996,2]
[402714362,1768827043515,-151.0,0.00017997,2]
[402714363,1768827043526,-500.0,0.00017998,2]
[402714364,1768827043535,-500.0,0.00017999,2]
[402714365,1768827043546,-500.0,0.00017999,2]
[402714366,1768827043557,-8337.3040799,0.00017999,2]
[402714367,1768827043567,-226572.0074507,0.00017999,2]
[402714368,1768827043576,-500.0,0.00017999,2]
[402714369,1768827043586,-500.0,0.00017999,2]
[402714370,1768827043595,-500.0,0.00017999,2]
[402714371,1768827043606,-500.0,0.00017999,2]
[402714372,1768827043615,-500.0,0.00017999,2]
[402714373,1768827043628,-500.0,0.00017999,2]
[402714374,1768827043639,-500.0,0.00017999,2]
[402714376,1768827043652,-500.0,0.00017999,2]
[402714377,1768827043664,-500.0,0.00017999,2]
[402714378,1768827043675,-500.0,0.00017999,2]
[402714379,1768827043688,-163.26702471,0.00017999,2]
[402714380,1768827043699,-166783.0880027,0.00017999,2]
[402714381,1768827043715,-697.54324621,0.00017999,2]
[402714382,1768827043724,-300.0,0.00017999,2]
[402714383,1768827043734,-666.0,0.00017999,2]
[402714384,1768827043744,-1692002.5138488,0.00018,2]
[402714391,1768827044136,-38003.21440433,0.00018,2]
[402714392,1768827046255,-1721.63452955,0.0001712,2]
[402714393,1768827046313,-713.80851622,0.0001712,2]
[402714394,1768827046388,-151.0,0.00016499,2]
[402714395,1768827046398,-664.88295691,0.0001712,2]
[402714396,1768827046408,-181.45497334,0.00017899,2]
[402714397,1768827046417,-13120.94208403,0.00018,2]
[402714400,1768827046873,-1000.0,0.00017057,2]
[402714401,1768827046884,-30225.9965,0.00018,2]
[402714409,1768827257852,10000.01,0.00013995,2]
[402714410,1768827257874,8661.82,0.00013995,2]
[402714411,1768827331156,6660.27,0.00027397,120]
[402714412,1768827370842,1216.55,0.00027397,120]
[402714413,1768827588444,-648.384304,0.00015471,2]
[402714414,1768827590822,-169.12939437,0.00015471,2]
[402714415,1768827593395,-213.91614905,0.00015471,2]
[402714416,1768827596337,-294.15545545,0.00015471,2]
[402714417,1768827597342,-245.70075882,0.00015471,2]
[402714418,1768827599449,-164.9802563,0.00015471,2]
[402714419,1768827601762,-344.33935801,0.00015471,2]
[402714420,1768827602992,163.97,0.00012332,2]
[402714421,1768827604924,-299.47953157,0.00015471,2]
[402714422,1768827605970,398.3276975,0.00027397,120]
[402714423,1768827607471,-450.22627817,0.00015471,2]
[402714424,1768827609529,-496.44153654,0.00015471,2]
[402714425,1768827612935,-200.0,0.00015471,2]
[402714426,1768827615529,-280.0,0.00015471,2]
[402714427,1768827617360,-237.64234053,0.00015471,2]
[402714428,1768827623522,-396.75203161,0.00015471,2]
[402714429,1768827625122,-427.90758935,0.00015471,2]
[402714430,1768827783037,-141.02501623,0.00015471,2]
[402714431,1768827783062,-98.91821594,0.00015471,2]
[402714432,1768827877617,2467.65411,0.00015393,2]
[402714433,1768827973336,1600.0,0.00015062,2]
[402714454,1768828198244,-1191.42,0.00019178,30]
[402714455,1768828198286,-308.58,0.0002,30]
[402714457,1768828231433,-127.66727137,0.00015471,2]
[402714458,1768828231443,-300.0,0.00015518,2]
[402714459,1768828231452,-257.97959331,0.0001556,2]
[402714460,1768828231462,-279.0,0.00015566,2]
[402714461,1768828231472,-300.0,0.00015566,2]
[402714462,1768828231482,-1200.0,0.00015566,2]
[402714463,1768828231491,-1000000.0,0.00015567,2]
[402714464,1768828231501,-3231.1698,0.00015596,2]
[402714465,1768828231512,-1820.45,0.000156,2]
[402714466,1768828231522,-1200.0,0.00015664,2]
[402714467,1768828231532,-1000.0,0.00015665,2]
[402714468,1768828231541,-500.0,0.00015666,2]
[402714469,1768828231551,-356.24113157,0.00015666,2]
[402714470,1768828231561,-1705.144,0.00015666,2]
[402714471,1768828231571,-165.395,0.00015666,2]
[402714472,1768828231581,-30527.47,0.00015667,2]
[402714473,1768828231590,-179.65,0.00015692,2]
[402714474,1768828231600,-151.0,0.00015693,2]
[402714475,1768828231609,-1112.7383542,0.00015694,2]
[402714476,1768828231619,-300.0,0.00015694,2]
[402714477,1768828231629,-181.32701673,0.00015695,2]
[402714478,1768828231639,-194.32990319,0.00015695,2]
[402714479,1768828231648,-270.13771399,0.00015695,2]
[402714480,1768828231658,-243.35395594,0.00015695,2]
[402714481,1768828231667,-500.0,0.00015695,2]
[402714482,1768828231677,-500.0,0.00015695,2]
[402714483,1768828231686,-500.0,0.00015695,2]
[402714484,1768828231697,-500.0,0.00015695,2]
[402714485,1768828231707,-500.0,0.00015695,2]